fUST/lending_fUST_20250603
["ID","MTS","AMOUNT","RATE_DAILY","PERIOD"]
[363909995,1748921444939,-500.0,0.00021839,2]
[363909997,1748921444948,-350.0,0.00021839,2]
[363909999,1748921444957,-500.0,0.00021839,2]
[363910001,1748921444967,-1071.55,0.00021886,2]
[363910003,1748921444976,-151.0,0.000219,4]
[363910005,1748921444986,-617.11503155,0.000219,2]
[363910007,1748921444995,-12670.76136593,0.000219,3]
[363910009,1748921445005,-155.01,0.00021905,30]
[363910011,1748921445015,-155.0,0.00021905,2]
[363910013,1748921445025,-151.0,0.00021906,2]
[363910015,1748921445034,-290.835878,0.00021906,2]
[363910017,1748921445044,-397.31064,0.00021906,2]
[363910019,1748921445053,-151.0,0.00021906,2]
[363910021,1748921445063,-397.31064,0.00021906,2]
[363910023,1748921445073,-5000.0,0.00021906,2]
[363910025,1748921445082,-203.83567907,0.00021917,2]
[363910027,1748921445091,-500.0,0.00021917,2]
[363910029,1748921445101,-1112.44,0.00021917,2]
[363910031,1748921445110,-687.98,0.00021917,2]
[363910033,1748921445121,-636.01,0.00021917,2]
[363910035,1748921445131,-440.79,0.00021917,2]
[363910037,1748921445141,-776.34,0.00021917,2]
[363910039,1748921445150,-256.4,0.00021917,2]
[363910041,1748921445160,-150.0,0.00021918,2]
[363910043,1748921445170,-446.25084189,0.00021918,2]
[363910045,1748921445180,-1013.92685185,0.00021947,2]
[363910047,1748921445190,-500.0,0.00021973,2]
[363910049,1748921445199,-500.0,0.00021973,2]
[363910051,1748921445208,-500.0,0.00021973,2]
[363910053,1748921445217,-501.56031537,0.00021973,2]
[363910055,1748921445226,-500.0,0.00021973,2]
[363910057,1748921445235,-500.0,0.00021973,2]
[363910059,1748921445244,-1071.55,0.00021986,6]
[363910061,1748921445254,-500.0,0.00022,2]
[363910063,1748921445264,-22586.91224154,0.00022,2]
[363910065,1748921445276,-5629.1037855,0.00022,2]
[363910068,1748921445291,-440.0,0.0001863,2]
[363910070,1748921445300,-5858.79697883,0.00022,2]
[363910075,1748921445342,-1092.28,0.00022,2]
[363910077,1748921445353,-7580.58964468,0.00022,2]
[363910080,1748921445365,-2628.23219521,0.00022,2]
[363910082,1748921445377,-952.03300493,0.00022,2]
[363910084,1748921445388,-500.0,0.00022,2]
[363910086,1748921445399,-1031.83050891,0.00022,2]
[363910088,1748921445410,-287.70733921,0.00022,2]
[363911639,1748921924356,179.09942,0.00013699,2]
[363911641,1748921983213,-300.0,0.00016437,2]
[363911642,1748921983236,-440.0,0.00016438,2]
[363911643,1748921983261,-440.0,0.00016438,2]
[363911644,1748921983283,-458.25047519,0.00016438,2]
[363911645,1748921983308,-440.0,0.00016438,2]
[363911646,1748921983331,-430.0,0.00016438,2]
[363911647,1748921983356,-440.0,0.00016438,2]
[363911648,1748921983383,-440.0,0.00016438,2]
[363911649,1748921983405,-401.27644943,0.00016438,2]
[363911650,1748921983428,-430.0,0.00016438,2]
[363911651,1748921983451,-440.0,0.00016438,2]
[363911652,1748921983476,-340.47307538,0.00016438,2]
[363911653,1748922228161,-386.72522233,0.00015575,2]
[363911654,1748922229707,-195.47736732,0.00015575,2]
[363911655,1748922231890,-175.77452025,0.00015575,2]
[363911656,1748922236960,-257.10585127,0.00015575,2]
[363911657,1748922238506,-0.05535213,0.00015575,2]
[363911658,1748922377729,5000.0,0.0001552,2]
[363911659,1748922392326,24900.0,0.00015449,2]
[363911684,1748922632129,-582.9768744,0.000157,2]
[363911687,1748922632141,-432.10608677,0.000157,2]
[363911690,1748922632151,-578.86233178,0.00016338,2]
[363911700,1748922632238,-3056.79267469,0.00016338,2]
[363911702,1748922632247,-156.587,0.00016428,2]
[363911704,1748922632258,-300.0,0.00016436,2]
[363911706,1748922632267,-300.0,0.00016436,2]
[363911708,1748922632277,-300.0,0.00016436,2]
[363911709,1748922632288,-1200.0,0.00016436,2]
[363911710,1748922632297,-160.0,0.00016437,2]
[363911711,1748922632307,-500.0,0.00016437,2]
[363911712,1748922632316,-500.0,0.00016437,2]
[363911713,1748922632326,-500.0,0.00016437,2]
[363911714,1748922632336,-500.0,0.00016437,2]
[363911715,1748922632345,-500.0,0.00016437,2]
[363911716,1748922632355,-500.0,0.00016437,2]
[363911717,1748922632365,-500.0,0.00016437,2]
[363911718,1748922632375,-500.0,0.00016437,2]
[363911721,1748922632385,-499.51697486,0.00016437,2]
[363911723,1748922632394,-500.0,0.00016437,2]
[363911725,1748922632404,-500.0,0.00016437,2]
[363911727,1748922632414,-500.0,0.00016437,2]
[363911729,1748922632423,-500.0,0.00016437,2]
[363911730,1748922632433,-500.0,0.00016437,2]
[363911731,1748922632442,-500.0,0.00016437,2]
[363911732,1748922632451,-500.0,0.00016437,2]
[363911733,1748922632461,-500.0,0.00016437,2]
[363911734,1748922632470,-500.0,0.00016437,2]
[363911735,1748922632479,-500.0,0.00016437,2]
[363911736,1748922632489,-500.0,0.00016437,2]
[363911737,1748922632499,-500.0,0.00016437,2]
[363911738,1748922632510,-500.0,0.00016437,2]
[363911739,1748922632521,-500.0,0.00016437,2]
[363911740,1748922632531,-500.0,0.00016437,2]
[363911741,1748922632542,-500.0,0.00016437,2]
[363911742,1748922632551,-500.0,0.00016437,2]
[363911743,1748922632562,-500.0,0.00016437,2]
[363911744,1748922632572,-500.0,0.00016437,2]
[363911745,1748922632581,-500.0,0.00016437,2]
[363911746,1748922632591,-500.0,0.00016437,2]
[363911747,1748922632601,-441.99228444,0.00016437,2]
[363911748,1748922632611,-500.0,0.00016437,2]
[363911749,1748922632620,-500.0,0.00016437,2]
[363911750,1748922632630,-500.0,0.00016437,2]
[363911751,1748922632639,-500.0,0.00016437,2]
[363911752,1748922632649,-500.0,0.00016437,2]
[363911753,1748922632659,-500.0,0.00016437,2]
[363911754,1748922632669,-500.0,0.00016437,2]
[363911755,1748922632679,-518.88421518,0.00016437,2]
[363911756,1748922632688,-510.0,0.00016438,2]
[363911757,1748922632699,-430.0,0.00016438,2]
[363911758,1748922632708,-430.0,0.00016438,2]
[363911759,1748922632718,-430.0,0.00016438,2]
[363911760,1748922632728,-401.77027871,0.00016438,2]
[363911761,1748922632737,-450.0,0.00016438,2]
[363911762,1748922632748,-430.0,0.00016438,2]
[363911763,1748922632757,-430.0,0.00016438,2]
[363911764,1748922632767,-430.0,0.00016438,2]
[363911765,1748922632776,-178.46843917,0.00016438,2]
[363911766,1748922632785,-450.0,0.00016438,2]
[363911767,1748922632795,-430.0,0.00016438,2]
[363911768,1748922632804,-430.0,0.00016438,2]
[363911769,1748922632814,-430.0,0.00016438,2]
[363911770,1748922632824,-430.0,0.00016438,2]
[363911771,1748922632834,-430.0,0.00016438,2]
[363911772,1748922632843,-364.55153147,0.00016438,2]
[363911773,1748922632854,-430.0,0.00016438,2]
[363911774,1748922632864,-167.1776934,0.00016438,2]
[363911775,1748922632874,-430.0,0.00016438,2]
[363911776,1748922632884,-430.0,0.00016438,2]
[363911777,1748922633026,-430.0,0.00016438,2]
[363911778,1748922633037,-430.0,0.00016438,2]
[363911779,1748922633047,-430.0,0.00016438,2]
[363911780,1748922633058,-430.0,0.00016438,2]
[363911781,1748922633070,-194.61975857,0.00016438,2]
[363911782,1748922633081,-430.0,0.00016438,2]
[363911783,1748922633091,-182.72036556,0.00016438,2]
[363911784,1748922633102,-430.0,0.00016438,2]
[363911785,1748922633112,-435.33239412,0.00016438,2]
[363911786,1748922633126,-430.0,0.00016438,2]
[363911787,1748922633136,-430.0,0.00016438,2]
[363911788,1748922633146,-430.0,0.00016438,2]
[363911789,1748922633156,-343.33243676,0.00016438,2]
[363911790,1748922633167,-440.0,0.00016438,2]
[363911791,1748922633177,-403.1264626,0.00016438,2]
[363911792,1748922633187,-430.0,0.00016438,2]
[363911793,1748922633197,-430.0,0.00016438,2]
[363911794,1748922633209,-363.73473975,0.00016438,2]
[363911795,1748922633220,-431.05808427,0.00016438,2]
[363911796,1748922633230,-430.0,0.00016438,2]
[363911797,1748922633241,-231.58930105,0.00016438,2]
[363911798,1748922633251,-430.0,0.00016438,2]
[363911799,1748922633261,-430.0,0.00016438,2]
[363911800,1748922633271,-433.14065847,0.00016438,2]
[363911801,1748922633282,-436.37858863,0.00016438,2]
[363911802,1748922633292,-432.82338444,0.00016438,2]
[363911803,1748922633301,-430.0,0.00016438,2]
[363911804,1748922633311,-400.0,0.00016438,2]
[363911805,1748922633320,-440.0,0.00016438,2]
[363911806,1748922633330,-454.50277861,0.00016438,2]
[363911807,1748922633339,-430.0,0.00016438,2]
[363911808,1748922633349,-575.717177,0.00016438,2]
[363911809,1748922633358,-430.0,0.00016438,2]
[363911810,1748922633368,-436.79842344,0.00016438,2]
[363911811,1748922633377,-430.0,0.00016438,2]
[363911812,1748922633387,-431.88739318,0.00016438,2]
[363911813,1748922633397,-430.0,0.00016438,2]
[363911814,1748922633407,-430.0,0.00016438,2]
[363911815,1748922633417,-430.0,0.00016438,2]
[363911816,1748922633427,-430.0,0.00016438,2]
[363911817,1748922633437,-430.0,0.00016438,2]
[363911818,1748922633447,-430.0,0.00016438,2]
[363911819,1748922633457,-440.0,0.00016438,2]
[363911820,1748922633468,-500.0,0.00016438,2]
[363911821,1748922633478,-500.0,0.00016438,2]
[363911822,1748922633488,-521.05639592,0.00016438,2]
[363911823,1748922633499,-430.0,0.00016438,2]
[363911824,1748922633509,-430.0,0.00016438,2]
[363911825,1748922633519,-430.0,0.00016438,2]
[363911826,1748922633540,-435.64573783,0.00016438,2]
[363911827,1748922633552,-430.0,0.00016438,2]
[363911828,1748922633563,-430.0,0.00016438,2]
[363911829,1748922633574,-440.0,0.00016438,2]
[363911830,1748922633584,-430.0,0.00016438,2]
[363911831,1748922633595,-444.38551305,0.00016438,2]
[363911832,1748922633607,-266.18490172,0.00016438,2]
[363911833,1748922633617,-245.58447487,0.00016438,2]
[363911834,1748922633627,-430.0,0.00016438,2]
[363911835,1748922633638,-430.0,0.00016438,2]
[363911836,1748922633648,-430.0,0.00016438,2]
[363911837,1748922633659,-430.0,0.00016438,2]
[363911838,1748922633669,-500.0,0.00016438,2]
[363911839,1748922633680,-434.62908407,0.00016438,2]
[363911840,1748922633692,-430.0,0.00016438,2]
[363911841,1748922633702,-155.72141373,0.00016438,2]
[363911842,1748922633713,-440.0,0.00016438,2]
[363911843,1748922633723,-440.0,0.00016438,2]
[363911844,1748922633734,-430.0,0.00016438,2]
[363911845,1748922633745,-430.0,0.00016438,2]
[363911846,1748922633756,-430.0,0.00016438,2]
[363911847,1748922633766,-430.0,0.00016438,2]
[363911848,1748922633777,-430.0,0.00016438,2]
[363911849,1748922633789,-430.0,0.00016438,2]
[363911850,1748922633800,-430.0,0.00016438,2]
[363911851,1748922633810,-430.0,0.00016438,2]
[363911852,1748922633821,-430.0,0.00016438,2]
[363911853,1748922633832,-430.0,0.00016438,2]
[363911854,1748922633843,-434.27478811,0.00016438,2]
[363911855,1748922633853,-426.28448095,0.00016438,2]
[363911856,1748922633863,-434.64155568,0.00016438,2]
[363911857,1748922633874,-430.0,0.00016438,2]
[363911858,1748922633884,-430.0,0.00016438,2]
[363911859,1748922633894,-440.0,0.00016438,2]
[363911860,1748922633906,-430.0,0.00016438,2]
[363911861,1748922633917,-408.99744583,0.00016438,2]
[363911862,1748922633927,-430.0,0.00016438,2]
[363911863,1748922633937,-430.0,0.00016438,2]
[363911864,1748922633947,-440.0,0.00016438,2]
[363911865,1748922633958,-440.0,0.00016438,2]
[363911866,1748922633968,-440.0,0.00016438,2]
[363911867,1748922633978,-430.0,0.00016438,2]
[363911868,1748922633988,-430.0,0.00016438,2]
[363911869,1748922633998,-458.20125836,0.00016438,2]
[363911870,1748922634009,-442.89870059,0.00016438,2]
[363911871,1748922634019,-430.0,0.00016438,2]
[363911872,1748922634030,-430.0,0.00016438,2]
[363911873,1748922634042,-440.0,0.00016438,2]
[363911874,1748922634052,-178.08582138,0.00016438,2]
[363911875,1748922634062,-430.0,0.00016438,2]
[363911876,1748922634073,-440.0,0.00016438,2]
[363911877,1748922634083,-430.0,0.00016438,2]
[363911878,1748922634095,-431.14606688,0.00016438,2]
[363911879,1748922634105,-430.0,0.00016438,2]
[363911880,1748922634115,-436.83347661,0.00016438,2]
[363911881,1748922634128,-430.0,0.00016438,2]
[363911882,1748922634138,-430.0,0.00016438,2]
[363911883,1748922634147,-430.0,0.00016438,2]
[363911884,1748922634161,-430.0,0.00016438,2]
[363911885,1748922634174,-440.0,0.00016438,2]
[363911886,1748922634184,-440.0,0.00016438,2]
[363911887,1748922634194,-500.0,0.00016438,2]
[363911888,1748922634206,-500.0,0.00016438,2]
[363911889,1748922634217,-437.53710747,0.00016438,2]
[363911890,1748922634227,-500.0,0.00016438,2]
[363911891,1748922634237,-430.0,0.00016438,2]
[363911892,1748922634248,-500.0,0.00016438,2]
[363911893,1748922634258,-500.0,0.00016438,2]
[363911894,1748922634269,-500.0,0.00016438,2]
[363911895,1748922634279,-439.4364531,0.00016438,2]
[363911896,1748922634292,-430.0,0.00016438,2]
[363911897,1748922634302,-430.0,0.00016438,2]
[363911898,1748922634312,-430.0,0.00016438,2]
[363911899,1748922634322,-430.0,0.00016438,2]
[363911900,1748922634332,-430.0,0.00016438,2]
[363911901,1748922634342,-430.0,0.00016438,2]
[363911902,1748922634352,-430.0,0.00016438,2]
[363911903,1748922634363,-430.0,0.00016438,2]
[363911904,1748922634372,-440.0,0.00016438,2]
[363911905,1748922634383,-430.0,0.00016438,2]
[363911906,1748922634393,-430.0,0.00016438,2]
[363911907,1748922634402,-430.0,0.00016438,2]
[363911908,1748922634412,-430.0,0.00016438,2]
[363911909,1748922634422,-430.0,0.00016438,2]
[363911910,1748922634432,-403.24618801,0.00016438,2]
[363911911,1748922634442,-440.0,0.00016438,2]
[363911912,1748922634452,-430.0,0.00016438,2]
[363911913,1748922634462,-430.0,0.00016438,2]
[363911914,1748922634472,-440.0,0.00016438,2]
[363911915,1748922634481,-440.0,0.00016438,2]
[363911916,1748922634491,-440.0,0.00016438,2]
[363911917,1748922634501,-440.0,0.00016438,2]
[363911918,1748922634511,-440.0,0.00016438,2]
[363911919,1748922634521,-348.33069632,0.00016438,2]
[363911920,1748922634531,-440.0,0.00016438,2]
[363911921,1748922634542,-430.0,0.00016438,2]
[363911922,1748922634552,-430.0,0.00016438,2]
[363911923,1748922634561,-440.0,0.00016438,2]
[363911924,1748922634571,-430.0,0.00016438,2]
[363911925,1748922634581,-440.0,0.00016438,2]
[363911926,1748922634590,-440.0,0.00016438,2]
[363911927,1748922634600,-440.0,0.00016438,2]
[363911928,1748922634611,-440.0,0.00016438,2]
[363911929,1748922634621,-440.0,0.00016438,2]
[363911930,1748922634631,-370.0,0.00016438,2]
[363911931,1748922634641,-434.17997053,0.00016438,2]
[363911932,1748922634651,-440.0,0.00016438,2]
[363911933,1748922634661,-163.12026565,0.00016438,2]
[363911934,1748922634671,-462.3312129,0.00016438,2]
[363911935,1748922634680,-440.0,0.00016438,2]
[363911936,1748922634689,-430.0,0.00016438,2]
[363911937,1748922634698,-440.0,0.00016438,2]
[363911938,1748922634707,-430.0,0.00016438,2]
[363911939,1748922634715,-440.0,0.00016438,2]
[363911940,1748922634724,-440.0,0.00016438,2]
[363911941,1748922634733,-440.0,0.00016438,2]
[363911942,1748922634743,-440.0,0.00016438,2]
[363911943,1748922634752,-430.0,0.00016438,2]
[363911944,1748922634762,-430.0,0.00016438,2]
[363911945,1748922634771,-440.0,0.00016438,2]
[363911946,1748922634780,-440.0,0.00016438,2]
[363911947,1748922634791,-249.88320416,0.00016438,2]
[363911948,1748922634800,-440.0,0.00016438,2]
[363911949,1748922634810,-430.0,0.00016438,2]
[363911950,1748922634819,-436.85540727,0.00016438,2]
[363911951,1748922634828,-440.0,0.00016438,2]
[363911952,1748922634837,-390.78128537,0.00016438,2]
[363911953,1748922634846,-422.43167697,0.00016438,2]
[363911954,1748922634855,-223.33281384,0.00016438,2]
[363911955,1748922634865,-440.0,0.00016438,2]
[363911956,1748922634874,-440.0,0.00016438,2]
[363911957,1748922634882,-440.0,0.00016438,2]
[363911958,1748922634892,-440.0,0.00016438,2]
[363911959,1748922634902,-440.0,0.00016438,2]
[363911960,1748922634912,-440.0,0.00016438,2]
[363911961,1748922634923,-440.0,0.00016438,2]
[363911962,1748922634933,-440.0,0.00016438,2]
[363911963,1748922634943,-166.21888878,0.00016438,2]
[363911964,1748922634952,-440.0,0.00016438,2]
[363911965,1748922634962,-440.0,0.00016438,2]
[363911966,1748922634972,-440.0,0.00016438,2]
[363911967,1748922634982,-440.0,0.00016438,2]
[363911968,1748922634991,-430.0,0.00016438,2]
[363911969,1748922635001,-371.64994425,0.00016438,2]
[363911970,1748922635012,-440.0,0.00016438,2]
[363911971,1748922635022,-204.72749902,0.00016438,2]
[363911972,1748922635032,-440.0,0.00016438,2]
[363911973,1748922635043,-440.0,0.00016438,2]
[363911974,1748922635053,-584.36699579,0.00016438,2]
[363911975,1748922635062,-458.27026235,0.00016438,2]
[363911976,1748922635072,-440.0,0.00016438,2]
[363911977,1748922635081,-440.0,0.00016438,2]
[363911978,1748922635091,-440.0,0.00016438,2]
[363911979,1748922635101,-440.0,0.00016438,2]
[363911980,1748922635110,-430.0,0.00016438,2]
[363911981,1748922635122,-450.52180083,0.00016438,2]
[363911982,1748922635132,-440.0,0.00016438,2]
[363911983,1748922635142,-440.0,0.00016438,2]
[363911984,1748922635152,-430.0,0.00016438,2]
[363911985,1748922635161,-440.0,0.00016438,2]
[363911986,1748922635171,-1000.0,0.00016438,2]
[363911987,1748922635181,-440.0,0.00016438,2]
[363911988,1748922635190,-440.0,0.00016438,2]
[363911989,1748922635202,-440.0,0.00016438,2]
[363911990,1748922635212,-440.0,0.00016438,2]
[363911991,1748922635222,-420.0,0.00016438,2]
[363911992,1748922635232,-440.0,0.00016438,2]
[363911993,1748922635242,-440.0,0.00016438,2]
[363911994,1748922635252,-433.19812214,0.00016438,2]
[363911995,1748922635262,-440.0,0.00016438,2]
[363911996,1748922635271,-440.0,0.00016438,2]
[363911997,1748922635281,-430.0,0.00016438,2]
[363911998,1748922635291,-430.0,0.00016438,2]
[363911999,1748922635301,-440.0,0.00016438,2]
[363912000,1748922635311,-440.0,0.00016438,2]
[363912001,1748922635320,-440.0,0.00016438,2]
[363912002,1748922635330,-440.0,0.00016438,2]
[363912003,1748922635340,-440.0,0.00016438,2]
[363912004,1748922635349,-440.0,0.00016438,2]
[363912005,1748922635359,-440.0,0.00016438,2]
[363912006,1748922635368,-440.0,0.00016438,2]
[363912007,1748922635378,-449.77406837,0.00016438,2]
[363912008,1748922635388,-440.0,0.00016438,2]
[363912009,1748922635398,-470.0,0.00016438,2]
[363912010,1748922635407,-440.0,0.00016438,2]
[363912011,1748922635417,-407.94244435,0.00016438,2]
[363912012,1748922635427,-440.29127016,0.00016438,2]
[363912013,1748922635436,-440.0,0.00016438,2]
[363912014,1748922635447,-440.0,0.00016438,2]
[363912015,1748922635456,-434.5462893,0.00016438,2]
[363912016,1748922635466,-440.0,0.00016438,2]
[363912017,1748922635475,-440.0,0.00016438,2]
[363912018,1748922635485,-440.0,0.00016438,2]
[363912019,1748922635495,-781.65,0.00016438,2]
[363912020,1748922635504,-440.79095054,0.00016438,2]
[363912021,1748922635514,-408.1063356,0.00016438,2]
[363912022,1748922635523,-435.18885065,0.00016438,2]
[363912023,1748922635533,-428.43546915,0.00016438,2]
[363912024,1748922635543,-440.0,0.00016438,2]
[363912025,1748922635553,-440.0,0.00016438,2]
[363912026,1748922635563,-430.0,0.00016438,2]
[363912027,1748922635573,-440.0,0.00016438,2]
[363912028,1748922635583,-440.0,0.00016438,2]
[363912029,1748922635592,-402.54561649,0.00016438,2]
[363912030,1748922635602,-440.0,0.00016438,2]
[363912031,1748922635611,-440.0,0.00016438,2]
[363912032,1748922635621,-440.0,0.00016438,2]
[363912033,1748922635631,-440.0,0.00016438,2]
[363912034,1748922635640,-440.0,0.00016438,2]
[363912035,1748922635650,-1218.98,0.00016438,2]
[363912036,1748922635660,-500.0,0.00016438,2]
[363912037,1748922635670,-440.0,0.00016438,2]
[363912038,1748922635679,-440.0,0.00016438,2]
[363912039,1748922635689,-440.0,0.00016438,2]
[363912040,1748922635698,-445.84188339,0.00016438,2]
[363912041,1748922635708,-440.0,0.00016438,2]
[363912042,1748922635719,-354.22214173,0.00016438,2]
[363912043,1748922635728,-440.0,0.00016438,2]
[363912044,1748922635738,-440.0,0.00016438,2]
[363912045,1748922635748,-439.36262788,0.00016438,2]
[363912046,1748922635757,-440.0,0.00016438,2]
[363912047,1748922635767,-440.0,0.00016438,2]
[363912048,1748922635777,-440.0,0.00016438,2]
[363912049,1748922635787,-440.0,0.00016438,2]
[363912050,1748922635797,-440.0,0.00016438,2]
[363912051,1748922635807,-440.0,0.00016438,2]
[363912052,1748922635818,-440.0,0.00016438,2]
[363912053,1748922635827,-10228.68,0.00016438,2]
[363912054,1748922635837,-504.87557463,0.00016438,2]
[363912055,1748922635847,-440.0,0.00016438,2]
[363912056,1748922635857,-440.0,0.00016438,2]
[363912057,1748922635867,-440.0,0.00016438,2]
[363912058,1748922635876,-452.64438413,0.00016438,2]
[363912059,1748922635996,-450.0,0.00016438,2]
[363912060,1748922636017,-547.55929883,0.00016438,2]
[363912061,1748922636027,-440.0,0.00016438,2]
[363912062,1748922636038,-440.0,0.00016438,2]
[363912063,1748922636048,-440.0,0.00016438,2]
[363912064,1748922636057,-440.0,0.00016438,2]
[363912065,1748922636067,-440.0,0.00016438,2]
[363912066,1748922636077,-352.87823144,0.00016438,2]
[363912067,1748922636086,-688.66,0.00016438,2]
[363912068,1748922636096,-403.23967013,0.00016438,2]
[363912069,1748922636108,-216.35483599,0.00016438,2]
[363912070,1748922636122,-440.0,0.00016438,2]
[363912071,1748922636141,-440.0,0.00016438,2]
[363912072,1748922636150,-440.0,0.00016438,2]
[363912073,1748922636159,-440.0,0.00016438,2]
[363912074,1748922636170,-440.0,0.00016438,2]
[363912075,1748922636180,-411.9357577,0.00016438,2]
[363912076,1748922636190,-404.37876923,0.00016438,2]
[363912077,1748922636199,-440.0,0.00016438,2]
[363912078,1748922636208,-440.0,0.00016438,2]
[363912079,1748922636218,-439.39464432,0.00016438,2]
[363912080,1748922636227,-440.0,0.00016438,2]
[363912081,1748922636236,-504.15887617,0.00016438,2]
[363912082,1748922636246,-433.46962167,0.00016438,2]
[363912083,1748922636256,-440.0,0.00016438,2]
[363912084,1748922636265,-440.0,0.00016438,2]
[363912085,1748922636275,-439.32276598,0.00016438,2]
[363912086,1748922636284,-561.46362119,0.00016438,2]
[363912087,1748922636295,-440.0,0.00016438,2]
[363912088,1748922636304,-286.86471909,0.00016438,2]
[363912089,1748922636313,-453.07188305,0.00016438,2]
[363912090,1748922636323,-933.78,0.00016438,2]
[363912091,1748922636332,-440.0,0.00016438,2]
[363912092,1748922636342,-430.0,0.00016438,2]
[363912093,1748922636351,-431.29772155,0.00016438,2]
[363912094,1748922636361,-465.39677554,0.00016438,2]
[363912095,1748922636371,-1169.05,0.00016438,2]
[363912096,1748922636382,-430.0,0.00016438,2]
[363912097,1748922636391,-440.0,0.00016438,2]
[363912098,1748922636401,-1184.86,0.00016438,2]
[363912099,1748922636412,-247.28146974,0.00016438,2]
[363912100,1748922636422,-442.11667325,0.00016438,2]
[363912101,1748922636432,-440.0,0.00016438,2]
[363912102,1748922636441,-440.0,0.00016438,2]
[363912103,1748922636451,-440.0,0.00016438,2]
[363912104,1748922636460,-440.0,0.00016438,2]
[363912105,1748922636470,-452.24656411,0.00016438,2]
[363912106,1748922636480,-430.0,0.00016438,2]
[363912107,1748922636489,-430.0,0.00016438,2]
[363912108,1748922636499,-440.0,0.00016438,2]
[363912109,1748922636508,-430.0,0.00016438,2]
[363912110,1748922636517,-440.0,0.00016438,2]
[363912111,1748922636527,-440.0,0.00016438,2]
[363912112,1748922636536,-440.0,0.00016438,2]
[363912113,1748922636546,-588.47,0.00016438,2]
[363912114,1748922636556,-440.0,0.00016438,2]
[363912115,1748922636566,-440.0,0.00016438,2]
[363912116,1748922636577,-440.0,0.00016438,2]
[363912117,1748922636588,-440.0,0.00016438,2]
[363912118,1748922636599,-430.0,0.00016438,2]
[363912119,1748922636610,-440.0,0.00016438,2]
[363912120,1748922636621,-440.0,0.00016438,2]
[363912121,1748922636631,-440.0,0.00016438,2]
[363912122,1748922636642,-430.0,0.00016438,2]
[363912123,1748922636652,-440.0,0.00016438,2]
[363912124,1748922636661,-440.0,0.00016438,2]
[363912125,1748922636671,-440.0,0.00016438,2]
[363912126,1748922636681,-440.0,0.00016438,2]
[363912127,1748922636691,-440.0,0.00016438,2]
[363912128,1748922636701,-440.0,0.00016438,2]
[363912129,1748922636710,-440.0,0.00016438,2]
[363912130,1748922636720,-401.95291092,0.00016438,2]
[363912131,1748922636729,-461.27749013,0.00016438,2]
[363912132,1748922636739,-440.0,0.00016438,2]
[363912133,1748922636748,-432.84448559,0.00016438,2]
[363912134,1748922636758,-452.44008545,0.00016438,2]
[363912135,1748922636768,-440.0,0.00016438,2]
[363912136,1748922636778,-440.0,0.00016438,2]
[363912137,1748922636788,-440.0,0.00016438,2]
[363912138,1748922636798,-440.0,0.00016438,2]
[363912139,1748922636808,-440.0,0.00016438,2]
[363912140,1748922636817,-440.0,0.00016438,2]
[363912141,1748922636827,-410.0,0.00016438,2]